fUSD/lending_fUSD_20250629
["ID","MTS","AMOUNT","RATE_DAILY","PERIOD"]
[368496469,1751190797694,-2504.1,0.00032054,3]
[368496470,1751190797703,-1607.63,0.00032054,3]
[368496471,1751190797714,-1132.25,0.00032054,3]
[368496472,1751190797723,-11678.75,0.00032054,3]
[368496473,1751190797733,-3607.16,0.00032054,3]
[368496474,1751190797743,-674.39,0.00032054,3]
[368496475,1751190797753,-2388.21,0.00032054,3]
[368496476,1751190797763,-632.01,0.00032054,3]
[368496477,1751190797773,-3749.55,0.00032054,3]
[368496478,1751190797787,-2478.96,0.00032054,3]
[368496479,1751190797798,-536.71,0.00032054,3]
[368496480,1751190797808,-1798.53,0.00032054,3]
[368496481,1751190797818,-490.0,0.00032054,3]
[368496482,1751190797829,-3221.5,0.00032054,3]
[368496483,1751190797839,-1629.68,0.00032054,3]
[368496484,1751190797849,-1535.71,0.00032054,3]
[368496485,1751190797859,-548.24,0.00032054,3]
[368496486,1751190797869,-2263.99,0.00032054,3]
[368496487,1751190797880,-1677.32,0.00032054,3]
[368496488,1751190797891,-6718.76,0.00032054,3]
[368496489,1751190797902,-1322.58,0.00032054,3]
[368496490,1751190797912,-857.93,0.00032054,3]
[368496491,1751190797923,-553.18,0.00032054,3]
[368496492,1751190797934,-18559.3,0.00032054,3]
[368496493,1751190797945,-490.0,0.00032054,3]
[368496494,1751190797956,-2586.37,0.00032054,3]
[368496495,1751190798274,-987.81,0.00032054,3]
[368496496,1751190798292,-1263.2,0.00032054,3]
[368496497,1751190798304,-698.11,0.00032054,3]
[368496498,1751190798313,-826.74,0.00032054,3]
[368496499,1751190798323,-3862.63,0.00032054,3]
[368496500,1751190798332,-1943.16,0.00032054,3]
[368496501,1751190798342,-4122.27,0.00032054,3]
[368496502,1751190798351,-490.0,0.00032054,3]
[368496503,1751190798361,-490.0,0.00032054,3]
[368496504,1751190798371,-490.0,0.00032054,3]
[368496505,1751190798380,-490.0,0.00032054,3]
[368496507,1751190798390,-1385.92,0.00032054,3]
[368496508,1751190798400,-1552.69,0.00032054,3]
[368496509,1751190798409,-5320.1,0.00032054,3]
[368496511,1751190798420,-490.0,0.00032054,3]
[368496512,1751190798430,-2723.89,0.00032054,3]
[368496513,1751190798440,-2347.57,0.00032054,3]
[368496514,1751190798450,-1307.14,0.00032054,3]
[368496515,1751190798460,-2896.25,0.00032054,3]
[368496516,1751190798470,-1874.39,0.00032054,3]
[368496517,1751190798480,-620.43,0.00032054,3]
[368496518,1751190798493,-4529.09,0.00032054,3]
[368496519,1751190798505,-2024.74,0.00032054,3]
[368496520,1751190798515,-919.31,0.00032054,3]
[368496521,1751190798525,-5682.59,0.00032054,3]
[368496522,1751190798535,-2104.31,0.00032054,3]
[368496523,1751190798545,-626.13,0.00032054,3]
[368496524,1751190798555,-1968.64,0.00032054,3]
[368496525,1751190798565,-1770.11,0.00032054,3]
[368496526,1751190798576,-1764.06,0.00032054,3]
[368496527,1751190798586,-2133.2,0.00032054,3]
[368496528,1751190798596,-700.52,0.00032054,3]
[368496529,1751190798606,-1730.13,0.00032054,3]
[368496530,1751190798616,-2165.68,0.00032054,3]
[368496531,1751190798625,-236.1730161,0.00032054,3]
[368496532,1751190798635,-883.4,0.00032054,3]
[368496533,1751190798646,-513.72,0.00032054,3]
[368496534,1751190798655,-1926.75,0.00032054,3]
[368496535,1751190798665,-5921.12,0.00032054,3]
[368496536,1751190798675,-490.0,0.00032054,3]
[368496537,1751190798684,-2141.99,0.00032054,3]
[368496538,1751190798694,-2043.04,0.00032054,3]
[368496539,1751190798704,-204.01451867,0.00032054,3]
[368496540,1751190798714,-631.01,0.00032054,3]
[368496541,1751190798724,-855.58,0.00032054,3]
[368496542,1751190798734,-1625.9,0.00032054,3]
[368496543,1751190798744,-696.89,0.00032054,3]
[368496544,1751190798754,-3241.41,0.00032054,3]
[368496545,1751190798765,-2087.25,0.00032054,3]
[368496546,1751190798775,-1891.34,0.00032054,3]
[368496547,1751190798785,-4543.11,0.00032054,3]
[368496548,1751190798795,-3866.16,0.00032054,3]
[368496549,1751190798805,-569.82,0.00032054,3]
[368496550,1751190798815,-1931.12,0.00032054,3]
[368496551,1751190798824,-490.0,0.00032054,3]
[368496552,1751190798834,-1948.57,0.00032054,3]
[368496553,1751190798844,-1323.16,0.00032054,3]
[368496554,1751190798854,-971.22,0.00032054,3]
[368496555,1751190798865,-6890.33,0.00032054,3]
[368496556,1751190798875,-1740.09,0.00032054,3]
[368496557,1751190798885,-490.0,0.00032054,3]
[368496558,1751190798895,-1509.17,0.00032054,3]
[368496559,1751190798906,-961.28,0.00032054,3]
[368496560,1751190798916,-802.0,0.00032055,3]
[368496561,1751190798926,-453.0,0.00032055,3]
[368496562,1751190798937,-312.68872601,0.00032069,7]
[368496563,1751190798947,-294.80816015,0.00032069,7]
[368496564,1751190798958,-2043.46130184,0.00032072,26]
[368496565,1751190798968,-150.0,0.00032077,7]
[368496566,1751190798979,-150.0,0.00032085,7]
[368496567,1751190798988,-150.0,0.00032087,7]
[368496568,1751190798999,-150.0,0.00032093,7]
[368496569,1751190799010,-250.0,0.000321,7]
[368496570,1751190799020,-250.0,0.000321,7]
[368496571,1751190799031,-250.0,0.000321,7]
[368496572,1751190799042,-250.0,0.000321,7]
[368496573,1751190799053,-250.0,0.000321,7]
[368496574,1751190799063,-250.0,0.000321,7]
[368496575,1751190799074,-250.0,0.000321,7]
[368496576,1751190799084,-250.0,0.000321,7]
[368496577,1751190799095,-250.0,0.000321,7]
[368496578,1751190799105,-309.5,0.000321,7]
[368496579,1751190799116,-150.0,0.00032116,7]
[368496580,1751190799126,-312.68872601,0.00032135,7]
[368496581,1751190799137,-294.80816015,0.00032135,7]
[368496582,1751190799148,-150.0,0.00032139,7]
[368496583,1751190799159,-150.0,0.00032173,7]
[368496584,1751190799171,-150.0,0.00032175,7]
[368496585,1751190799182,-312.68872601,0.00032202,7]
[368496586,1751190799193,-294.80816015,0.00032202,7]
[368496587,1751190799203,-150.0,0.00032202,7]
[368496588,1751190799214,-150.0,0.00032214,7]
[368496589,1751190799224,-150.0,0.00032227,7]
[368496590,1751190799235,-150.0,0.00032253,7]
[368496591,1751190799247,-152.0,0.00032253,4]
[368496592,1751190799259,-312.68872601,0.00032268,7]
[368496593,1751190799269,-294.80816015,0.00032268,7]
[368496594,1751190799280,-150.0,0.00032273,7]
[368496595,1751190799290,-2043.46130184,0.00032279,26]
[368496596,1751190799301,-150.0,0.00032287,7]
[368496597,1751190799311,-1528.36,0.00032328,9]
[368496598,1751190799321,-600.46,0.00032328,3]
[368496599,1751190799332,-542.33,0.00032328,3]
[368496600,1751190799343,-847.37,0.00032328,3]
[368496601,1751190799353,-490.0,0.00032328,3]
[368496602,1751190799364,-490.0,0.00032328,3]
[368496603,1751190799374,-490.0,0.00032328,3]
[368496604,1751190799384,-948.9,0.00032328,3]
[368496605,1751190799394,-667.1,0.00032328,3]
[368496606,1751190799404,-978.74,0.00032328,3]
[368496607,1751190799415,-642.29,0.00032328,3]
[368496608,1751190799426,-490.0,0.00032328,3]
[368496609,1751190799436,-361.2276145,0.00032328,3]
[368496610,1751190799446,-1186.44,0.00032328,3]
[368496611,1751190799457,-490.0,0.00032328,3]
[368496612,1751190799467,-490.0,0.00032328,3]
[368496613,1751190799476,-2554.302964,0.00032328,3]
[368496614,1751190799487,-488.85708046,0.00032328,3]
[368496615,1751190799498,-853.16,0.00032328,3]
[368496616,1751190799508,-2816.157543,0.00032328,3]
[368496617,1751190799519,-2200.380726,0.00032328,3]
[368496618,1751190799528,-151.959343,0.00032328,3]
[368496619,1751190799540,-500.85,0.00032328,3]
[368496620,1751190799550,-392.680419,0.00032328,3]
[368496621,1751190799561,-490.0,0.00032328,3]
[368496622,1751190799571,-887.72,0.00032328,3]
[368496623,1751190799582,-556.18,0.00032328,3]
[368496624,1751190799593,-153.102854,0.00032328,3]
[368496625,1751190799603,-656.47,0.00032328,3]
[368496626,1751190799613,-571.97,0.00032328,3]
[368496627,1751190799623,-858.42,0.00032328,3]
[368496628,1751190799633,-490.0,0.00032328,3]
[368496629,1751190799644,-1167.71,0.00032328,3]
[368496630,1751190799654,-648.74,0.00032328,3]
[368496631,1751190799664,-167.777922,0.00032328,3]
[368496632,1751190799674,-642.42,0.00032328,3]
[368496633,1751190799683,-523.68,0.00032328,3]
[368496634,1751190799693,-490.0,0.00032328,3]
[368496635,1751190799703,-625.75,0.00032328,3]
[368496636,1751190799712,-490.0,0.00032328,3]
[368496637,1751190799721,-1529.36,0.00032328,3]
[368496638,1751190799731,-725.47,0.00032328,3]
[368496639,1751190799740,-167.777922,0.00032328,3]
[368496640,1751190799750,-490.0,0.00032328,3]
[368496641,1751190799759,-1837.93,0.00032328,3]
[368496642,1751190799768,-961.81,0.00032328,3]
[368496643,1751190799778,-677.59,0.00032328,3]
[368496644,1751190799787,-580.93684996,0.00032328,3]
[368496645,1751190799797,-490.0,0.00032328,3]
[368496646,1751190799807,-490.0,0.00032328,3]
[368496647,1751190799816,-811.6,0.00032328,3]
[368496648,1751190799826,-701.76,0.00032328,3]
[368496649,1751190799835,-490.0,0.00032328,3]
[368496650,1751190799846,-801.55,0.00032328,3]
[368496651,1751190799857,-493.56,0.00032328,3]
[368496652,1751190799867,-490.0,0.00032328,3]
[368496653,1751190799876,-590.68,0.00032328,3]
[368496654,1751190799886,-490.0,0.00032328,3]
[368496655,1751190799896,-740.41,0.00032328,3]
[368496656,1751190799906,-930.82,0.00032328,3]
[368496657,1751190799915,-1134.82,0.00032328,3]
[368496658,1751190799925,-629.08,0.00032328,3]
[368496659,1751190799935,-507.56,0.00032328,3]
[368496660,1751190799944,-1395.58,0.00032328,3]
[368496661,1751190799954,-508.09,0.00032328,3]
[368496662,1751190799963,-596.83,0.00032328,3]
[368496663,1751190799973,-516.57,0.00032328,3]
[368496664,1751190799982,-1527.96,0.00032328,3]
[368496665,1751190799991,-2015.14,0.00032328,3]
[368496666,1751190800001,-615.0,0.00032328,3]
[368496667,1751190800010,-187.23676856,0.00032328,3]
[368496668,1751190800019,-889.47,0.00032328,3]
[368496669,1751190800029,-2302.9,0.00032328,3]
[368496670,1751190800040,-945.27,0.00032328,3]
[368496671,1751190800049,-743.01,0.00032328,3]
[368496672,1751190800059,-643.27,0.00032328,3]
[368496673,1751190800069,-1940.61,0.00032328,3]
[368496674,1751190800078,-1952.95,0.00032328,3]
[368496675,1751190800088,-1201.96,0.00032328,3]
[368496676,1751190800097,-1310.06,0.00032328,3]
[368496677,1751190800107,-369.84,0.00032328,3]
[368496678,1751190800117,-1125.22,0.00032328,3]
[368496679,1751190800127,-1224.35,0.00032328,3]
[368496680,1751190800136,-195.20349861,0.00032328,3]
[368496681,1751190800150,-976.06,0.00032328,3]
[368496682,1751190800161,-1824.88,0.00032328,3]
[368496683,1751190800171,-749.58,0.00032328,3]
[368496684,1751190800180,-603.75,0.00032328,3]
[368496685,1751190800190,-957.88,0.00032328,3]
[368496686,1751190800200,-490.0,0.00032328,3]
[368496687,1751190800210,-538.77,0.00032328,3]
[368496688,1751190800219,-776.78,0.00032328,3]
[368496689,1751190800229,-960.82,0.00032328,3]
[368496690,1751190800238,-894.84,0.00032328,3]
[368496691,1751190800247,-490.0,0.00032328,3]
[368496692,1751190800256,-1904.77,0.00032328,3]
[368496693,1751190800266,-1462.39,0.00032328,3]
[368496694,1751190800275,-2300.89,0.00032328,3]
[368496695,1751190800285,-490.0,0.00032328,3]
[368496696,1751190800294,-650.78,0.00032328,3]
[368496697,1751190800303,-2228.41,0.00032328,3]
[368496698,1751190800313,-694.52,0.00032328,3]
[368496699,1751190800322,-490.0,0.00032328,3]
[368496700,1751190800331,-444.31908246,0.00032328,3]
[368496701,1751190800341,-1649.19,0.00032328,3]
[368496702,1751190800350,-2026.94,0.00032328,3]
[368496703,1751190800359,-490.0,0.00032328,3]
[368496704,1751190800369,-843.7,0.00032328,3]
[368496705,1751190800378,-246.85997504,0.00032328,3]
[368496706,1751190800387,-490.0,0.00032328,3]
[368496707,1751190800397,-490.0,0.00032328,3]
[368496708,1751190800407,-490.0,0.00032328,3]
[368496709,1751190800416,-571.61,0.00032328,3]
[368496710,1751190800425,-896.97,0.00032328,3]
[368496711,1751190800435,-594.67,0.00032328,3]
[368496712,1751190800445,-1556.08,0.00032328,3]
[368496713,1751190800454,-1147.84,0.00032328,3]
[368496714,1751190800463,-490.0,0.00032328,3]
[368496715,1751190800472,-1027.62,0.00032328,3]
[368496716,1751190800481,-707.16,0.00032328,3]
[368496717,1751190800491,-880.72,0.00032328,3]
[368496718,1751190800502,-792.35,0.00032328,3]
[368496719,1751190800512,-490.0,0.00032328,3]
[368496720,1751190800522,-153.83109836,0.00032328,3]
[368496721,1751190800532,-780.47,0.00032328,3]
[368496722,1751190800544,-560.33,0.00032328,3]
[368496723,1751190800553,-944.59,0.00032328,3]
[368496724,1751190800562,-1653.81,0.00032328,3]
[368496725,1751190800573,-525.19,0.00032328,3]
[368496726,1751190800585,-1620.77,0.00032328,3]
[368496727,1751190800595,-1900.77,0.00032328,3]
[368496728,1751190800605,-521.24,0.00032328,3]
[368496729,1751190800615,-1487.61,0.00032328,3]
[368496730,1751190800625,-1556.78,0.00032328,3]
[368496731,1751190800636,-1633.03,0.00032328,3]
[368496732,1751190800646,-1046.71,0.00032328,3]
[368496733,1751190800656,-506.3,0.00032328,3]
[368496734,1751190800666,-514.5,0.00032328,3]
[368496735,1751190800676,-490.0,0.00032328,3]
[368496736,1751190800686,-1936.24,0.00032328,3]
[368496737,1751190800810,-2262.43,0.00032328,3]
[368496738,1751190800820,-665.95,0.00032328,3]
[368496739,1751190800829,-2474.6,0.00032328,3]
[368496740,1751190800838,-1268.88,0.00032328,3]
[368496741,1751190800847,-689.16,0.00032328,3]
[368496742,1751190800857,-1400.07,0.00032328,3]
[368496743,1751190800867,-858.86,0.00032328,3]
[368496744,1751190800876,-730.59,0.00032328,3]
[368496745,1751190800886,-666.33,0.00032328,3]
[368496746,1751190800895,-1700.28,0.00032328,3]
[368496747,1751190800904,-818.45,0.00032328,3]
[368496748,1751190800913,-1024.15,0.00032328,3]
[368496749,1751190800922,-709.17,0.00032328,3]
[368496750,1751190800931,-1027.52,0.00032328,3]
[368496751,1751190800940,-2038.87,0.00032328,3]
[368496752,1751190800950,-534.02,0.00032328,3]
[368496753,1751190800959,-2394.84,0.00032328,3]
[368496754,1751190800969,-1167.05,0.00032328,3]
[368496755,1751190800978,-1561.51,0.00032328,3]
[368496756,1751190800987,-899.19,0.00032328,3]
[368496757,1751190800997,-935.31,0.00032328,3]
[368496758,1751190801007,-771.06,0.00032328,3]
[368496759,1751190801016,-610.33,0.00032328,3]
[368496760,1751190801025,-576.83749273,0.00032328,3]
[368496761,1751190801034,-1503.84,0.00032328,3]
[368496762,1751190801044,-1626.28,0.00032328,3]
[368496763,1751190801054,-566.4,0.00032328,3]
[368496764,1751190801064,-715.86,0.00032328,3]
[368496765,1751190801073,-934.93,0.00032328,3]
[368496766,1751190801084,-516.29,0.00032328,3]
[368496767,1751190801094,-589.35,0.00032328,3]
[368496768,1751190801103,-2211.02,0.00032328,3]
[368496769,1751190801114,-1313.26,0.00032328,3]
[368496770,1751190801124,-878.98,0.00032328,3]
[368496771,1751190801136,-2018.3,0.00032328,3]
[368496772,1751190801147,-1272.1,0.00032328,3]
[368496773,1751190801157,-1320.46,0.00032328,3]
[368496774,1751190801167,-2254.95,0.00032328,3]
[368496775,1751190801177,-490.0,0.00032328,3]
[368496776,1751190801190,-801.49,0.00032328,3]
[368496777,1751190801201,-793.92,0.00032328,3]
[368496778,1751190801212,-1409.04,0.00032328,3]
[368496779,1751190801223,-566.98,0.00032328,3]
[368496780,1751190801233,-520.23,0.00032328,3]
[368496781,1751190801243,-855.39,0.00032328,3]
[368496782,1751190801253,-503.31,0.00032328,3]
[368496783,1751190801263,-1383.19,0.00032328,3]
[368496784,1751190801273,-907.17,0.00032328,3]
[368496785,1751190801284,-1733.55,0.00032328,3]
[368496786,1751190801296,-1411.93,0.00032328,3]
[368496787,1751190801311,-219.30538728,0.00032328,3]
[368496788,1751190801321,-490.0,0.00032328,3]
[368496789,1751190801330,-1161.29,0.00032328,3]
[368496790,1751190801340,-490.0,0.00032328,3]
[368496791,1751190801349,-648.19,0.00032328,3]
[368496792,1751190801360,-664.2,0.00032328,3]
[368496793,1751190801370,-492.59,0.00032328,3]
[368496794,1751190801381,-1411.98,0.00032328,3]
[368496795,1751190801392,-490.0,0.00032328,3]
[368496796,1751190801401,-1476.05,0.00032328,3]
[368496797,1751190801411,-2483.68,0.00032328,3]
[368496798,1751190801421,-622.78,0.00032328,3]
[368496799,1751190801434,-2320.44,0.00032328,3]
[368496800,1751190801444,-1539.15,0.00032328,3]
[368496801,1751190801455,-894.95,0.00032328,3]
[368496802,1751190801463,-701.41,0.00032328,3]
[368496803,1751190801474,-526.1,0.00032328,3]
[368496804,1751190801483,-1005.08,0.00032328,3]
[368496805,1751190801494,-1199.97,0.00032328,3]
[368496806,1751190801504,-1032.78,0.00032328,3]
[368496807,1751190801517,-549.61,0.00032328,3]
[368496808,1751190801527,-1283.76,0.00032328,3]
[368496809,1751190801536,-901.15,0.00032328,3]
[368496810,1751190801547,-545.6,0.00032328,3]
[368496811,1751190801558,-841.45,0.00032328,3]
[368496812,1751190801568,-525.0,0.00032328,3]
[368496813,1751190801578,-260.08407978,0.00032328,3]
[368496814,1751190801589,-490.0,0.00032328,3]
[368496815,1751190801599,-1956.7,0.00032328,3]
[368496816,1751190801609,-1559.17,0.00032328,3]
[368496817,1751190801619,-174.25895012,0.00032328,3]
[368496818,1751190801630,-908.9,0.00032328,3]
[368496819,1751190801640,-772.36,0.00032328,3]
[368496820,1751190801650,-1731.31,0.00032328,3]
[368496821,1751190801659,-1241.41,0.00032328,3]
[368496822,1751190801670,-490.0,0.00032328,3]
[368496823,1751190801679,-490.0,0.00032328,3]
[368496824,1751190801689,-2257.75,0.00032328,3]
[368496825,1751190801699,-1736.54,0.00032328,3]
[368496826,1751190801708,-2325.03,0.00032328,3]
[368496827,1751190801717,-613.43,0.00032328,3]
[368496828,1751190801727,-1117.78,0.00032328,3]
[368496829,1751190801737,-896.69,0.00032328,3]
[368496830,1751190801745,-998.0,0.00032328,3]
[368496831,1751190801753,-1022.6,0.00032328,3]
[368496832,1751190801763,-1382.19,0.00032328,3]
[368496833,1751190801773,-1087.69,0.00032328,3]
[368496834,1751190801783,-937.32,0.00032328,3]
[368496835,1751190801795,-2003.29,0.00032328,3]
[368496836,1751190801806,-1073.82,0.00032328,3]
[368496837,1751190801816,-1428.66,0.00032328,3]
[368496838,1751190801827,-906.56,0.00032328,3]
[368496839,1751190801837,-751.94,0.00032328,3]
[368496840,1751190801847,-278.56327353,0.00032328,3]
[368496841,1751190801856,-1284.2,0.00032328,3]
[368496842,1751190801867,-995.73,0.00032328,3]
[368496843,1751190801876,-249.06,0.00032328,3]
[368496844,1751190801886,-730.89,0.00032328,3]
[368496845,1751190801896,-490.0,0.00032328,3]
[368496846,1751190801906,-299.63324582,0.00032328,3]
[368496847,1751190801916,-490.0,0.00032328,3]
[368496848,1751190801926,-3819.49,0.00032328,3]
[368496849,1751190801936,-614.58,0.00032328,3]
[368496850,1751190801946,-2099.43,0.00032328,3]
[368496851,1751190801956,-591.09,0.00032328,3]
[368496852,1751190801965,-1763.09,0.00032328,3]
[368496853,1751190801975,-930.34,0.00032328,3]
[368496854,1751190801986,-1553.22,0.00032328,3]
[368496855,1751190801995,-490.0,0.00032328,3]
[368496856,1751190802005,-935.65,0.00032328,3]
[368496857,1751190802015,-490.0,0.00032328,3]
[368496858,1751190802025,-587.32,0.00032328,3]
[368496859,1751190802034,-4450.47,0.00032328,3]
[368496860,1751190802046,-1288.37,0.00032328,3]
[368496861,1751190802055,-490.0,0.00032328,3]
[368496862,1751190802065,-528.19,0.00032328,3]
[368496863,1751190802075,-959.78,0.00032328,3]
[368496864,1751190802085,-766.16,0.00032328,3]
[368496865,1751190802096,-1454.99,0.00032328,3]
[368496866,1751190802106,-1177.8,0.00032328,3]
[368496867,1751190802115,-1065.99,0.00032328,3]
[368496868,1751190802125,-921.89,0.00032328,3]
[368496869,1751190802134,-171.21276762,0.00032328,3]
[368496870,1751190802144,-1049.98,0.00032328,3]
[368496871,1751190802155,-490.0,0.00032328,3]
[368496872,1751190802165,-603.29,0.00032328,3]
[368496873,1751190802175,-490.0,0.00032328,3]
[368496874,1751190802184,-1101.22,0.00032328,3]
[368496875,1751190802194,-490.0,0.00032328,3]
[368496876,1751190802203,-1690.83,0.00032328,3]
[368496877,1751190802213,-494.25,0.00032328,3]
[368496878,1751190802223,-608.46,0.00032328,3]
[368496879,1751190802232,-916.39,0.00032328,3]
[368496880,1751190802242,-555.36,0.00032328,3]
[368496881,1751190802252,-573.71,0.00032328,3]
[368496882,1751190802262,-1033.94,0.00032328,3]
[368496883,1751190802272,-1394.52,0.00032328,3]
[368496884,1751190802282,-841.15,0.00032328,3]
[368496885,1751190802292,-18048.03,0.00032328,3]
[368496886,1751190802302,-698.3,0.00032328,3]
[368496887,1751190802312,-814.68,0.00032328,3]
[368496888,1751190802322,-860.32,0.00032328,3]
[368496889,1751190802331,-994.63,0.00032328,3]
[368496890,1751190802340,-817.07,0.00032328,3]
[368496891,1751190802349,-1083.78,0.00032328,3]
[368496892,1751190802358,-895.73,0.00032328,3]
[368496893,1751190802367,-1619.71,0.00032328,3]
[368496894,1751190802377,-2039.79,0.00032328,3]
[368496895,1751190802386,-252.28115951,0.00032328,3]
[368496896,1751190802396,-627.15,0.00032328,3]
[368496897,1751190802406,-1338.17,0.00032328,3]
[368496898,1751190802415,-522.56,0.00032328,3]
[368496899,1751190802424,-5045.19,0.00032328,3]
[368496900,1751190802434,-732.19,0.00032328,3]
[368496901,1751190802443,-490.0,0.00032328,3]
[368496902,1751190802452,-2735.95,0.00032328,3]
[368496903,1751190802462,-1159.62,0.00032328,3]
[368496904,1751190802472,-557.27,0.00032328,3]
[368496905,1751190802482,-1735.18,0.00032328,3]
[368496906,1751190802491,-2798.62,0.00032328,3]
[368496907,1751190802504,-795.99,0.00032328,3]
[368496908,1751190802513,-2676.96,0.00032328,3]
[368496909,1751190802522,-890.5,0.00032328,3]
[368496910,1751190802532,-815.43,0.00032328,3]
[368496911,1751190802542,-2632.4,0.00032328,3]
[368496912,1751190802551,-490.0,0.00032328,3]
[368496913,1751190802561,-7199.68,0.00032328,3]
[368496914,1751190802571,-2287.33,0.00032328,3]
[368496915,1751190802580,-1083.86,0.00032328,3]
[368496916,1751190802589,-1198.65,0.00032328,3]
[368496917,1751190802600,-564.45,0.00032328,3]
[368496918,1751190802609,-490.0,0.00032328,3]
[368496919,1751190802618,-4926.93,0.00032328,3]
[368496920,1751190802627,-2111.85,0.00032328,3]
[368496921,1751190802636,-2504.77,0.00032328,3]
[368496922,1751190802646,-670.5,0.00032328,3]
[368496923,1751190802655,-9168.68,0.00032328,3]
[368496924,1751190802665,-1466.04,0.00032328,3]
[368496925,1751190802676,-148479.19,0.00032328,3]
[368496926,1751190802686,-995.99,0.00032328,3]
[368496927,1751190802695,-884.61,0.00032328,3]
[368496928,1751190802705,-1110.23,0.00032328,3]
[368496929,1751190802715,-3927.92,0.00032328,3]
[368496930,1751190802724,-1262.58,0.00032328,3]
[368496931,1751190802733,-490.0,0.00032328,3]
[368496932,1751190802742,-1550.57,0.00032328,3]
[368496933,1751190802751,-799.02,0.00032328,3]
[368496934,1751190802761,-4423.72,0.00032328,3]
[368496935,1751190802770,-1420.75,0.00032328,3]
[368496936,1751190802779,-2359.81,0.00032328,3]
[368496937,1751190802788,-612.29,0.00032328,3]
[368496938,1751190802797,-2220.09,0.00032328,3]
[368496939,1751190802807,-490.0,0.00032328,3]
[368496940,1751190802815,-1116.8,0.00032328,3]
[368496941,1751190802825,-490.0,0.00032328,3]
[368496942,1751190802834,-1906.36,0.00032328,3]
[368496943,1751190802844,-2198.76,0.00032328,3]
[368496944,1751190802853,-850.38,0.00032328,3]
[368496945,1751190802863,-1730.15,0.00032328,3]
[368496946,1751190802872,-1635.41,0.00032328,3]
[368496947,1751190802881,-1477.82,0.00032328,3]
[368496948,1751190802891,-495.37,0.00032328,3]
[368496949,1751190802900,-3000.74,0.00032328,3]
[368496950,1751190802909,-924.29,0.00032328,3]
[368496951,1751190802918,-818.08,0.00032328,3]
[368496952,1751190802927,-1537.71,0.00032328,3]
[368496953,1751190802936,-1565.54,0.00032328,3]
[368496954,1751190802946,-1894.35,0.00032328,3]
[368496955,1751190802955,-707.33,0.00032328,3]
[368496956,1751190802965,-854.62,0.00032328,3]
[368496957,1751190802974,-490.0,0.00032328,3]
[368496958,1751190802984,-1990.15,0.00032328,3]
[368496959,1751190802993,-2120.63,0.00032328,3]
[368496960,1751190803004,-501.24,0.00032328,3]
[368496961,1751190803013,-1303.39,0.00032328,3]
[368496962,1751190803022,-2057.83,0.00032328,3]
[368496963,1751190803031,-1066.81,0.00032328,3]
[368496964,1751190803040,-1078.53,0.00032328,3]
[368496965,1751190803050,-2549.31,0.00032328,3]
[368496966,1751190803059,-829.05,0.00032328,3]
[368496967,1751190803068,-1514.01,0.00032328,3]
[368496968,1751190803078,-1413.24,0.00032328,3]
[368496969,1751190803087,-709.69,0.00032328,3]
[368496970,1751190803096,-490.0,0.00032328,3]